bitfinex/quotes_BTCUSD_20230403
["timestamp","ask_amount","ask_price","bid_price","bid_amount"]
[1680553469261,1.47048457,27753.0,27742.0,0.07597219]
[1680553469498,0.00897488,27750.0,27742.0,0.07597219]
[1680553469748,0.05137655,27748.0,27742.0,0.07597219]
[1680553469985,0.19327336,27748.0,27741.0,0.416]
[1680553470225,0.14189681,27747.0,27741.0,0.49197219]
[1680553470471,0.14189681,27747.0,27741.0,0.416]
[1680553470940,0.14189681,27747.0,27741.0,0.016]
[1680553471177,0.13689681,27747.0,27739.0,1.25318]
[1680553471421,0.13689681,27747.0,27739.0,0.93415219]
[1680553471667,0.13689681,27747.0,27739.0,0.55985219]
[1680553471903,0.13707681,27747.0,27739.0,0.1085547]
[1680553472133,0.13707681,27747.0,27739.0,0.08097219]
[1680553472363,0.13707681,27747.0,27740.0,0.08097219]
[1680553473304,0.13707681,27747.0,27741.0,0.08097219]
[1680553473500,0.00018,27747.0,27741.0,0.08097219]
[1680553473755,0.00018,27747.0,27741.0,0.08103219]
[1680553473756,0.04996925,27747.0,27741.0,0.08103219]
[1680553473987,0.05137655,27748.0,27741.0,0.08115219]
[1680553474217,0.19327336,27748.0,27741.0,0.08115219]
[1680553474439,0.19327336,27748.0,27741.0,0.08215219]
[1680553474665,0.19327336,27748.0,27741.0,0.08115219]
[1680553474896,0.05137655,27748.0,27741.0,0.08115219]
[1680553475113,0.05137655,27748.0,27741.0,0.08215219]
[1680553475344,0.05137655,27748.0,27741.0,0.47341519]
[1680553475579,0.05137655,27748.0,27743.0,0.513]
[1680553475827,0.00907308,27753.0,27745.0,0.4]
[1680553476048,0.00907308,27753.0,27746.0,0.08097219]
[1680553476543,0.00907308,27753.0,27746.0,0.09899219]
[1680553476769,0.05168706,27752.0,27746.0,0.16831941]
[1680553476995,0.19358387,27752.0,27746.0,0.18651941]
[1680553477220,0.05168706,27752.0,27747.0,0.3743]
[1680553477445,0.05168706,27752.0,27749.0,0.3743]
[1680553477676,0.05168706,27752.0,27750.0,0.018018]
[1680553477904,0.05168706,27752.0,27751.0,0.3743]
[1680553478133,0.05168706,27752.0,27751.0,0.392497]
[1680553478385,8.706e-05,27752.0,27751.0,0.47346919]
[1680553478604,0.02288,27754.0,27753.0,0.3743]
[1680553478902,0.02288,27754.0,27753.0,0.428348]
[1680553479367,0.02288,27754.0,27753.0,0.5322275]
[1680553480041,8e-05,27754.0,27753.0,0.5322275]
[1680553480237,8e-05,27754.0,27753.0,0.5511275]
[1680553480730,8e-05,27754.0,27753.0,0.5731275]
[1680553480952,8e-05,27754.0,27753.0,0.5511275]
[1680553481183,8e-05,27754.0,27753.0,0.5791275]
[1680553481433,8e-05,27754.0,27753.0,0.5793075]
[1680553481884,8e-05,27754.0,27753.0,0.8989675]
[1680553482775,8e-05,27754.0,27753.0,0.8709675]
[1680553483001,8e-05,27754.0,27753.0,0.8989675]
[1680553483233,8e-05,27754.0,27753.0,0.795088]
[1680553483476,8e-05,27754.0,27753.0,0.786588]
[1680553483706,8e-05,27754.0,27753.0,0.613728]
[1680553483947,8e-05,27754.0,27753.0,0.585548]
[1680553484177,8e-05,27754.0,27753.0,0.786408]
[1680553484404,8e-05,27754.0,27753.0,0.89408969]
[1680553484643,0.11875089,27757.0,27753.0,0.89390969]
[1680553484872,0.02326015,27757.0,27756.0,0.512]
[1680553485098,0.02326015,27757.0,27756.0,0.638098]
[1680553485331,0.02326015,27757.0,27756.0,0.7192058]
[1680553486022,0.02326015,27757.0,27756.0,0.9104658]
[1680553486242,0.02326015,27757.0,27756.0,0.7376058]
[1680553486762,0.02326015,27757.0,27756.0,0.9656058]
[1680553486986,0.02326015,27757.0,27756.0,0.9376058]
[1680553487202,0.02326015,27757.0,27756.0,1.3656058]
[1680553487434,0.02326015,27757.0,27756.0,1.3376058]
[1680553487657,0.02326015,27757.0,27756.0,1.1656058]
[1680553487891,0.02326015,27757.0,27756.0,0.7584]
[1680553488120,0.02326015,27757.0,27756.0,0.776414]
[1680553489270,0.02326015,27757.0,27756.0,0.84847]
[1680553489492,0.02326015,27757.0,27756.0,1.20147]
[1680553489725,0.02326015,27757.0,27756.0,1.3832348]
[1680553489954,0.02306,27764.0,27760.0,0.3743]
[1680553490186,0.02288,27764.0,27762.0,0.512]
[1680553490410,0.02288,27764.0,27763.0,0.08270932]
[1680553490639,0.02288,27764.0,27762.0,0.15571]
[1680553490871,0.02306,27764.0,27762.0,0.1377]
[1680553491108,0.02306,27764.0,27762.0,0.155709]
[1680553491335,0.02288,27764.0,27762.0,0.155709]
[1680553491629,0.02288,27764.0,27763.0,0.393473]
[1680553491854,0.02288,27764.0,27763.0,0.447501]
[1680553492303,0.02288,27764.0,27763.0,0.586101]
[1680553492970,0.02288,27764.0,27763.0,0.986101]
[1680553493201,0.02288,27764.0,27763.0,0.987101]
[1680553493668,0.02288,27764.0,27763.0,0.967928]
[1680553495487,0.01788,27764.0,27763.0,0.967928]
[1680553495940,0.01788,27764.0,27763.0,0.567928]
[1680553496170,0.01788,27764.0,27763.0,0.429328]
[1680553498301,0.01788,27764.0,27763.0,0.602128]
[1680553498538,0.01788,27764.0,27763.0,0.5305829]
[1680553500223,0.15977681,27764.0,27763.0,0.001]
[1680553500462,0.01788,27764.0,27763.0,0.001]
[1680553501656,0.01788,27764.0,27763.0,0.019009]
[1680553501917,0.02988,27764.0,27763.0,0.395309]
[1680553502148,0.02988,27764.0,27763.0,0.4456457]
[1680553502627,0.01788,27764.0,27763.0,0.4426457]
[1680553502856,0.01888,27764.0,27763.0,0.4666457]
[1680553503331,0.01888,27764.0,27763.0,0.3983]
[1680553503553,0.01888,27764.0,27763.0,0.4091]
[1680553503773,0.01788,27764.0,27763.0,0.3851]
[1680553503996,0.01888,27764.0,27763.0,0.427109]
[1680553504235,0.01788,27764.0,27763.0,0.403109]
[1680553504463,0.01888,27764.0,27763.0,0.410309]
[1680553504694,0.01888,27764.0,27763.0,0.3923]
[1680553504922,0.01888,27764.0,27763.0,0.431548]
[1680553505159,0.01888,27764.0,27763.0,0.410309]
[1680553505839,0.01888,27764.0,27763.0,0.418809]
[1680553506062,0.01888,27764.0,27763.0,0.428909]
[1680553506291,0.01888,27764.0,27763.0,0.601709]
[1680553506516,0.01888,27764.0,27763.0,0.7045157]
[1680553506745,0.01788,27764.0,27763.0,0.6865157]
[1680553506995,0.01888,27764.0,27763.0,0.7045157]
[1680553507901,0.01888,27764.0,27763.0,0.9045157]
[1680553508590,0.01888,27764.0,27763.0,0.8944157]
[1680553510444,0.01888,27764.0,27763.0,1.15546789]
[1680553510674,0.02288,27770.0,27763.0,1.2545907]
[1680553510901,0.02288,27770.0,27765.0,0.3743]
[1680553511138,0.16477681,27770.0,27767.0,0.3743]
[1680553511375,0.07943457,27765.0,27763.0,0.217438]
[1680553511614,0.22115138,27765.0,27764.0,0.3828]
[1680553511808,0.07925457,27765.0,27764.0,0.38298]
[1680553512085,0.07925457,27765.0,27764.0,0.44591599]
[1680553512309,0.07925457,27765.0,27764.0,0.3743]
[1680553512545,0.07925457,27765.0,27764.0,0.392308]
[1680553513255,0.4,27764.0,27762.0,0.00012]
[1680553513495,0.4,27764.0,27755.0,0.4]
[1680553513496,0.4,27758.0,27755.0,0.00018]
[1680553513743,0.4,27758.0,27752.0,0.7]
[1680553513744,1.3491161,27757.0,27752.0,0.7]
[1680553514003,0.4,27755.0,27751.0,0.00018]
[1680553514238,1.49088791,27754.0,27746.0,0.39518]
[1680553514486,1.35198035,27753.0,27746.0,0.0207]
[1680553514729,0.19575281,27752.0,27746.0,0.0207]
[1680553514979,0.050174,27751.0,27746.0,0.0207]
[1680553515248,0.2,27748.0,27746.0,0.0207]
[1680553515484,0.449943,27747.0,27746.0,0.0207]
[1680553515721,0.950123,27747.0,27746.0,0.0207]
[1680553515950,0.950123,27747.0,27746.0,0.0217]
[1680553516184,0.950123,27747.0,27746.0,0.0207]
[1680553516421,0.950123,27747.0,27746.0,0.0217]
[1680553516422,0.973123,27747.0,27746.0,0.0217]
[1680553516660,0.990923,27747.0,27746.0,0.0217]
[1680553517336,1.13281981,27747.0,27746.0,0.0217]
[1680553517570,2.4793278,27747.0,27746.0,0.0217]
[1680553517814,2.68302692,27747.0,27746.0,0.0217]
[1680553518041,1.38546883,27747.0,27746.0,0.0217]
[1680553518267,0.60872971,27747.0,27746.0,0.10267219]
[1680553518495,0.59092971,27747.0,27746.0,0.0217]
[1680553518731,0.573123,27747.0,27746.0,0.0217]
[1680553518963,0.391023,27747.0,27746.0,0.0217]
[1680553521752,0.53291981,27747.0,27746.0,0.0217]
[1680553521978,0.40882971,27747.0,27746.0,0.0217]
[1680553522261,1.691023,27747.0,27746.0,0.0217]
[1680553522973,1.691023,27747.0,27734.0,0.40018]
[1680553522974,0.4,27740.0,27734.0,0.40018]
[1680553523210,0.14189681,27739.0,27734.0,0.00018]
[1680553523443,0.14189681,27739.0,27732.0,0.2208]
[1680553523676,0.14189681,27739.0,27732.0,0.0208]
[1680553523912,0.14189681,27739.0,27732.0,0.39492]
[1680553524156,0.618,27737.0,27732.0,0.0208]
[1680553524394,0.618,27737.0,27732.0,0.02062]
[1680553524395,0.018,27734.0,27732.0,0.02062]
[1680553524640,0.59390981,27736.0,27732.0,0.02062]
[1680553524641,0.41488181,27733.0,27732.0,0.02062]
[1680553524885,0.446265,27733.0,27732.0,0.02062]
[1680553525130,0.073165,27733.0,27732.0,0.02062]
[1680553525368,0.055085,27733.0,27732.0,0.02062]
[1680553525591,0.05094,27734.0,27732.0,0.02062]
[1680553525822,0.027,27733.0,27732.0,0.39492]
[1680553526300,0.00018,27738.0,27732.0,0.39492]
[1680553526521,0.00018,27741.0,27734.0,0.3743]
[1680553526746,6e-05,27741.0,27736.0,0.3743]
[1680553526978,0.00018,27741.0,27738.0,0.3743]
[1680553527207,0.00018,27741.0,27739.0,0.7743]
[1680553527688,0.02718,27741.0,27739.0,0.3743]
[1680553527911,0.00018,27741.0,27739.0,0.3743]
[1680553528155,0.02718,27741.0,27739.0,0.3743]
[1680553528386,0.02718,27741.0,27740.0,0.3743]
[1680553528618,0.077508,27741.0,27736.0,0.00018]
[1680553528849,0.077508,27741.0,27733.0,0.3816]
[1680553528850,0.14189681,27740.0,27733.0,0.3816]
[1680553529077,0.0179,27738.0,27733.0,0.3816]
[1680553529328,0.14189681,27737.0,27733.0,0.3816]
[1680553529570,0.14189681,27737.0,27732.0,0.0208]
[1680553529808,0.018,27736.0,27732.0,0.02062]
[1680553530067,0.14189681,27735.0,27732.0,0.02062]
[1680553530301,0.018,27736.0,27732.0,0.02062]
[1680553530762,0.018,27736.0,27732.0,0.02056]
[1680553530996,0.00018,27737.0,27733.0,0.3743]
[1680553531260,0.027,27735.0,27733.0,0.45527219]
[1680553531494,0.00018,27737.0,27734.0,0.37424]
[1680553531730,0.00018,27742.0,27734.0,0.37424]
[1680553531972,0.00018,27744.0,27736.0,0.37424]
[1680553532209,0.00018,27744.0,27738.0,0.37424]
[1680553532453,0.00018,27744.0,27739.0,0.45521219]
[1680553532692,0.0179,27742.0,27739.0,0.37424]
[1680553532926,0.03325311,27743.0,27741.0,0.37424]
[1680553533161,0.03307311,27743.0,27742.0,0.41976122]
[1680553533880,0.00018,27746.0,27742.0,0.41976122]
[1680553534120,0.027,27743.0,27742.0,0.41976122]
[1680553534371,0.018,27747.0,27742.0,0.41976122]
[1680553534589,0.027,27743.0,27742.0,0.45521219]
[1680553534810,0.01818,27747.0,27741.0,0.3743]
[1680553535040,0.01818,27747.0,27741.0,0.08097219]
[1680553535272,0.052499,27746.0,27741.0,0.08097219]
[1680553535507,0.052679,27746.0,27737.0,0.7446]
[1680553535802,0.14189681,27745.0,27738.0,0.20589211]
[1680553536063,0.44207681,27745.0,27739.0,0.3743]
[1680553536544,0.44207681,27745.0,27738.0,0.3743]
[1680553536780,0.44207681,27745.0,27737.0,0.4]
[1680553536781,0.0196,27744.0,27737.0,0.4]
[1680553537011,0.14189681,27743.0,27738.0,0.3743]
[1680553537242,0.14207681,27743.0,27738.0,0.3743]
[1680553537470,0.14207681,27743.0,27736.0,1.9812]
[1680553537471,0.0195,27741.0,27736.0,1.9812]
[1680553537812,0.0195,27741.0,27734.0,0.4]
[1680553537813,0.0196,27738.0,27734.0,0.4]
[1680553538039,0.14189681,27738.0,27735.0,0.3743]
[1680553538273,0.00018,27739.0,27735.0,0.3743]
[1680553538500,0.0196,27741.0,27735.0,0.3743]
[1680553538736,0.0196,27741.0,27735.0,0.45527219]
[1680553538987,0.14189681,27741.0,27737.0,0.3743]
[1680553539216,0.00018,27741.0,27737.0,0.3743]
[1680553539436,0.01968,27742.0,27738.0,0.7743]
[1680553539671,0.03302478,27740.0,27735.0,0.08315219]
[1680553539903,0.03302478,27740.0,27734.0,0.4]
[1680553539904,0.14189681,27739.0,27734.0,0.4]
[1680553540361,0.14189681,27739.0,27733.0,0.7997]
[1680553540839,0.2,27737.0,27733.0,0.3743]
[1680553541087,0.34207681,27737.0,27733.0,0.3743]
[1680553541322,0.3196,27736.0,27732.0,0.02056]
[1680553541566,0.16167681,27736.0,27732.0,0.02056]
[1680553541813,0.14207681,27736.0,27733.0,0.001]
[1680553542033,0.052361,27735.0,27732.0,0.02056]
[1680553542256,0.377244,27736.0,27732.0,0.02056]
[1680553542483,0.3,27736.0,27732.0,0.02056]
[1680553542721,0.054895,27735.0,27732.0,0.02056]
[1680553543180,0.327,27736.0,27732.0,0.02056]
[1680553543436,0.050087,27735.0,27732.0,0.02056]
[1680553543666,0.0196,27733.0,27732.0,0.02056]
[1680553543880,0.073013,27733.0,27732.0,0.02056]
[1680553544336,1.173013,27733.0,27732.0,0.02056]
[1680553544794,0.0029745,27731.0,27729.0,0.0207]
[1680553544994,0.0225745,27731.0,27729.0,0.0207]
[1680553545705,0.0495745,27731.0,27729.0,0.0207]
[1680553545949,0.0299745,27731.0,27729.0,0.0207]
[1680553547167,1.7,27726.0,27724.0,0.02088]
[1680553547416,1.7,27726.0,27719.0,0.0208]
[1680553547417,0.4,27723.0,27719.0,0.0208]
[1680553547656,0.4,27723.0,27706.0,0.036092]
[1680553547657,0.4,27720.0,27713.0,0.00018]
[1680553547879,0.0196,27718.0,27712.0,1.52088]
[1680553548125,0.19324081,27717.0,27713.0,0.4]
[1680553548369,0.05445,27716.0,27713.0,0.00018]
[1680553548599,0.19098981,27716.0,27712.0,1.52088]
[1680553548838,0.049093,27716.0,27715.0,0.039646]
[1680553549553,0.38629971,27716.0,27715.0,0.039646]
[1680553549781,0.41900638,27716.0,27715.0,0.039646]
[1680553550244,0.41900638,27716.0,27715.0,0.12393819]
[1680553550467,0.05970667,27716.0,27715.0,0.413946]
[1680553550690,0.05970667,27716.0,27715.0,0.4953406]
[1680553550691,0.05952667,27716.0,27715.0,0.4953406]
[1680553550913,0.05952667,27716.0,27715.0,0.039646]
[1680553551597,0.03252667,27716.0,27715.0,0.039646]
[1680553551822,0.53162067,27716.0,27715.0,0.039646]
[1680553552050,0.80480067,27716.0,27715.0,0.039646]
[1680553553033,0.83180067,27716.0,27715.0,0.039646]
[1680553553275,1.61638467,27716.0,27715.0,0.03596257]
[1680553553506,1.24338467,27716.0,27715.0,0.02113218]
[1680553553737,1.2597032,27716.0,27715.0,0.02113218]
[1680553554665,0.83180067,27716.0,27715.0,0.02113218]
[1680553554897,0.83162067,27716.0,27715.0,0.02113218]
[1680553555353,0.53162067,27716.0,27715.0,0.02113218]
[1680553555611,0.13162067,27716.0,27715.0,0.02113218]
[1680553556040,0.53162067,27716.0,27715.0,0.02113218]
[1680553556530,0.83162067,27716.0,27715.0,0.02113218]
[1680553557242,1.9,27713.0,27712.0,1.48109445]
[1680553557486,0.71683754,27713.0,27712.0,1.38544248]
[1680553557729,0.90989754,27713.0,27712.0,1.33548552]
[1680553557964,2.86455754,27713.0,27712.0,1.32102589]
[1680553558215,2.98659064,27713.0,27712.0,1.32102589]
[1680553558907,3.26834192,27713.0,27712.0,1.32102589]
[1680553559149,3.24134192,27713.0,27712.0,1.32102589]
[1680553559390,3.26840192,27713.0,27712.0,1.32102589]
[1680553560108,0.30149634,27713.0,27712.0,1.40549808]
[1680553560336,0.03252667,27716.0,27715.0,0.3743]
[1680553560538,0.03252667,27716.0,27715.0,0.390567]
[1680553560814,0.00018,27723.0,27715.0,0.10055919]
[1680553560815,0.01968,27723.0,27715.0,0.10055919]
[1680553561050,0.0195,27723.0,27716.0,0.08429219]
[1680553561280,0.43775369,27726.0,27715.0,0.3743]
[1680553561281,0.0196,27721.0,27715.0,0.3743]
[1680553561513,0.0196,27721.0,27716.0,0.42001222]
[1680553561746,0.04570781,27721.0,27717.0,0.015189]
[1680553562050,0.05193682,27722.0,27717.0,0.639489]
[1680553562294,0.05193682,27722.0,27718.0,0.015567]
[1680553562295,0.03243682,27722.0,27718.0,0.015567]
[1680553562553,0.01,27721.0,27720.0,0.3743]
[1680553562762,0.03243682,27722.0,27720.0,0.390474]
[1680553562996,0.03243682,27722.0,27721.0,0.381437]
[1680553563225,0.03243682,27722.0,27721.0,0.017137]
[1680553563462,0.03243682,27722.0,27719.0,0.15429219]
[1680553563685,0.03243682,27722.0,27720.0,0.01613]
[1680553563922,0.04570781,27724.0,27720.0,0.01613]
[1680553564138,0.04570781,27724.0,27719.0,0.15429219]
[1680553564365,0.04570781,27724.0,27720.0,0.3795]
[1680553564628,0.04570781,27724.0,27719.0,0.15429219]
[1680553564849,0.03245295,27723.0,27719.0,0.16993941]
[1680553565090,0.03245295,27723.0,27719.0,0.16693941]
[1680553565310,0.03245295,27723.0,27719.0,0.16493941]
[1680553565533,0.03245295,27723.0,27720.0,0.018721]
[1680553565768,0.03245295,27723.0,27721.0,0.3795]
[1680553565996,0.03245295,27723.0,27722.0,0.015716]
[1680553566233,0.03245295,27723.0,27721.0,0.016412]
[1680553566473,0.03245295,27723.0,27720.0,0.39579]
[1680553566720,0.03245295,27723.0,27721.0,0.018327]
[1680553566961,0.05088781,27724.0,27722.0,0.3795]
[1680553567213,0.05088781,27724.0,27723.0,0.016657]
[1680553567214,0.00018,27724.0,27723.0,0.016657]
[1680553567444,0.00018,27725.0,27723.0,0.016657]
[1680553567664,0.06378,27727.0,27723.0,0.034692]
[1680553567900,0.06378,27727.0,27726.0,0.14929219]
[1680553567901,0.0636,27727.0,27726.0,0.14929219]
[1680553568128,0.0636,27727.0,27726.0,0.54451519]
[1680553569812,0.0636,27727.0,27726.0,0.54551519]
[1680553570280,0.0636,27727.0,27726.0,0.60571955]
[1680553570751,0.0636,27727.0,27726.0,0.61421955]
[1680553571688,0.0636,27727.0,27726.0,0.63225255]
[1680553573801,0.0318435,27731.0,27730.0,0.395618]
[1680553575168,0.0318435,27731.0,27730.0,0.408618]
[1680553577515,0.0318435,27731.0,27730.0,0.426649]
[1680553577976,0.0318435,27731.0,27730.0,0.48426112]
[1680553578206,0.0318435,27731.0,27730.0,0.426649]
[1680553578934,0.0318435,27731.0,27730.0,0.435149]
[1680553579408,0.00018,27739.0,27738.0,0.52879219]
[1680553579649,0.07358781,27745.0,27742.0,0.14929219]
[1680553579650,0.00018,27743.0,27742.0,0.14929219]
[1680553579894,0.02306,27745.0,27742.0,0.59911419]
[1680553580155,0.02288,27745.0,27743.0,0.016289]
[1680553580411,0.02288,27745.0,27744.0,0.536121]
[1680553580629,0.02288,27745.0,27744.0,0.55154]
[1680553580856,0.02288,27745.0,27744.0,0.533519]
[1680553581110,0.02288,27745.0,27744.0,0.534719]
[1680553581359,0.02288,27745.0,27744.0,0.68761282]
[1680553581603,0.02288,27745.0,27744.0,0.68861282]
[1680553581830,0.02288,27745.0,27744.0,0.53199182]
[1680553582995,0.02288,27745.0,27744.0,0.72293282]
[1680553583237,0.02288,27745.0,27744.0,0.55001282]
[1680553583480,0.02288,27748.0,27747.0,0.52879219]
[1680553583712,0.02277001,27753.0,27751.0,0.52867219]
[1680553583713,6e-05,27752.0,27751.0,0.52867219]
[1680553583902,0.02277001,27753.0,27751.0,0.03375]
[1680553584183,0.02277001,27753.0,27752.0,0.016473]
[1680553584867,0.02277001,27753.0,27752.0,0.017573]
[1680553585581,0.02277001,27753.0,27752.0,0.455886]
[1680553585815,0.02277001,27753.0,27752.0,0.397073]
[1680553586071,0.16466682,27753.0,27751.0,0.00018]
[1680553586313,0.16466682,27753.0,27748.0,0.00018]
[1680553586314,0.02277001,27753.0,27748.0,0.00018]
[1680553586508,0.2,27749.0,27744.0,0.00018]
[1680553586780,0.14189681,27748.0,27744.0,0.148088]
[1680553587022,0.14189681,27748.0,27747.0,0.3795]
[1680553587274,0.00018,27751.0,27747.0,0.413427]
[1680553587506,0.2,27749.0,27748.0,0.016289]
[1680553587761,0.2,27749.0,27748.0,0.395789]
[1680553588002,0.00018,27751.0,27748.0,0.395969]
[1680553588240,0.02277001,27753.0,27749.0,0.01584]
[1680553588475,0.2,27752.0,27749.0,0.01584]
[1680553588715,0.2,27752.0,27749.0,0.39534]
[1680553588975,0.20018,27752.0,27750.0,0.016622]
[1680553589898,0.2,27752.0,27750.0,0.3795]
[1680553590130,0.3,27756.0,27752.0,0.3795]
[1680553590131,0.00018,27756.0,27752.0,0.3795]
[1680553590359,1.38605802,27757.0,27756.0,0.3795]
[1680553590360,1.38617802,27757.0,27756.0,0.3795]
[1680553590598,0.16605802,27757.0,27756.0,0.935341]
[1680553590825,0.16605802,27757.0,27756.0,1.070501]
[1680553591042,0.16605802,27757.0,27756.0,1.141241]
[1680553591274,0.16605802,27757.0,27756.0,1.141001]
[1680553591543,0.16605802,27757.0,27756.0,1.160181]
[1680553591769,0.16605802,27757.0,27756.0,1.159821]
[1680553591995,0.16605802,27757.0,27756.0,1.159941]
[1680553592240,0.16605802,27757.0,27756.0,1.160121]
[1680553592462,0.16605802,27757.0,27756.0,1.140761]
[1680553592686,0.16605802,27757.0,27756.0,1.160301]
[1680553592906,0.16605802,27757.0,27756.0,1.160001]
[1680553593141,0.16605802,27757.0,27756.0,1.160121]
[1680553593368,0.16605802,27757.0,27756.0,1.188317]
[1680553593585,0.16605802,27757.0,27756.0,1.188377]
[1680553593803,0.16605802,27757.0,27756.0,1.188497]
[1680553594081,0.16605802,27757.0,27756.0,1.188617]
[1680553594301,0.16605802,27757.0,27756.0,1.105397]
[1680553594527,0.16605802,27757.0,27756.0,1.188497]
[1680553594745,0.16605802,27757.0,27756.0,1.188377]
[1680553594969,0.16605802,27757.0,27756.0,1.188557]
[1680553595192,0.16605802,27757.0,27756.0,1.188437]
[1680553595422,0.15938053,27757.0,27756.0,1.188497]
[1680553595646,0.00018,27760.0,27758.0,0.3795]
[1680553595871,0.02288,27762.0,27759.0,0.535617]
[1680553596089,0.02288,27762.0,27760.0,0.016376]
[1680553596319,0.02288,27762.0,27761.0,0.433531]
[1680553596550,0.02306,27762.0,27761.0,0.45021]
[1680553596793,0.02306,27762.0,27761.0,0.465803]
[1680553597081,0.02288,27762.0,27761.0,0.558913]
[1680553597352,0.02288,27762.0,27761.0,0.567413]
[1680553597947,0.02288,27762.0,27739.0,0.4]
[1680553597948,0.4,27744.0,27739.0,0.4]
[1680553598213,0.4,27722.0,27721.0,0.34631741]
[1680553598433,0.046969,27722.0,27712.0,1.32102589]
[1680553598662,0.333392,27721.0,27712.0,1.32120589]
[1680553598891,6e-05,27722.0,27713.0,0.4]
[1680553599117,0.20018,27722.0,27714.0,0.3795]
[1680553599622,0.43014017,27721.0,27715.0,0.5295]
[1680553599849,0.034465,27720.0,27712.0,1.52302589]
[1680553600079,0.207805,27720.0,27712.0,1.52102589]
[1680553600308,0.43165417,27719.0,27714.0,0.002]
[1680553600566,0.035236,27718.0,27714.0,0.002]
[1680553600824,0.48014552,27718.0,27714.0,0.002]
[1680553601062,0.48014552,27718.0,27713.0,0.3795]
[1680553601063,0.033732,27717.0,27713.0,0.3795]
[1680553601295,0.43138217,27717.0,27715.0,0.002]
[1680553601528,0.037177,27716.0,27713.0,0.3795]
[1680553601771,0.97838779,27716.0,27714.0,0.002]
[1680553601999,0.94121079,27716.0,27715.0,0.3795]
[1680553602235,0.00018,27716.0,27715.0,0.3795]
[1680553603401,0.19889449,27722.0,27717.0,0.00110551]
[1680553603627,0.033598,27721.0,27718.0,0.14189681]
[1680553603850,1.4,27723.0,27720.0,0.00110551]
[1680553603851,0.00018,27723.0,27720.0,0.00110551]
[1680553604079,0.19907449,27726.0,27721.0,0.52139681]
[1680553604392,0.19907449,27726.0,27721.0,0.14189681]
[1680553604393,0.033045,27725.0,27721.0,0.14189681]
[1680553604651,0.4282691,27725.0,27721.0,0.14189681]
[1680553604925,0.031435,27724.0,27720.0,6e-05]
[1680553605145,0.031435,27724.0,27723.0,0.00110551]
[1680553605374,0.031435,27724.0,27721.0,0.002]
[1680553605601,0.031435,27724.0,27723.0,0.00110551]
[1680553605839,0.031435,27724.0,27721.0,0.002]
[1680553606298,0.03065151,27725.0,27723.0,0.00110551]
[1680553606533,0.03046,27724.0,27723.0,0.00110551]
[1680553606778,0.19889449,27729.0,27723.0,0.38060551]
[1680553607074,0.032478,27728.0,27724.0,0.14189681]
[1680553607295,0.032478,27728.0,27724.0,0.14207681]
[1680553607523,0.032478,27728.0,27724.0,0.00018]
[1680553607982,0.032478,27728.0,27723.0,0.00110551]
[1680553608222,0.31780671,27731.0,27724.0,0.002]
[1680553608223,0.01780671,27731.0,27724.0,0.002]
[1680553608468,0.030797,27730.0,27726.0,0.00110551]
[1680553608700,0.22969149,27730.0,27726.0,0.14300232]
[1680553608919,0.031893,27729.0,27727.0,0.3795]
[1680553609152,0.031893,27729.0,27727.0,0.37968]
[1680553609383,0.30018,27732.0,27727.0,0.37968]
[1680553609611,0.031827,27731.0,27727.0,0.52157681]
[1680553609850,0.032072,27732.0,27727.0,0.37776496]
[1680553610078,0.031952,27732.0,27727.0,0.52166177]
[1680553610309,0.031952,27732.0,27727.0,0.57184595]
[1680553610537,0.031952,27732.0,27727.0,0.53779595]
[1680553610538,0.032132,27732.0,27727.0,0.53779595]
[1680553610788,0.032132,27732.0,27727.0,0.34171496]
[1680553610789,0.00018,27732.0,27727.0,0.34171496]
[1680553611048,0.02842027,27731.0,27727.0,0.34371496]
[1680553611274,0.02842027,27731.0,27727.0,0.48361177]
[1680553611496,0.02842027,27731.0,27729.0,0.34171496]
[1680553611734,0.02860027,27731.0,27729.0,0.34171496]
[1680553611963,0.02842027,27731.0,27729.0,0.34171496]
[1680553612433,0.02842027,27731.0,27730.0,0.34171496]
[1680553612657,0.04742027,27731.0,27730.0,0.34171496]
[1680553613557,0.02842027,27731.0,27730.0,0.34171496]
[1680553613822,0.04742027,27731.0,27730.0,0.34371496]
[1680553614048,0.11042294,27728.0,27724.0,0.018034]
[1680553614285,0.04742027,27731.0,27728.0,6e-05]
[1680553614510,0.04742027,27731.0,27725.0,0.3795]
[1680553614989,0.02842027,27731.0,27725.0,0.3795]
[1680553615234,0.00018,27738.0,27732.0,0.2]
[1680553615477,0.00018,27741.0,27733.0,0.54879381]
[1680553615665,0.00018,27741.0,27735.0,0.3795]
[1680553615925,0.00018,27741.0,27737.0,0.3795]
[1680553616169,0.00018,27741.0,27738.0,0.52139681]
[1680553616394,0.00018,27741.0,27739.0,0.4]
[1680553617093,0.40018,27741.0,27735.0,0.37968]
[1680553617352,0.40018,27741.0,27736.0,0.3795]
[1680553617604,0.031778,27740.0,27736.0,0.3795]
[1680553617838,0.4,27737.0,27736.0,0.00018]
[1680553618097,0.56766595,27734.0,27729.0,0.00018]
[1680553618597,0.56766595,27734.0,27730.0,0.3795]
[1680553618815,0.56766595,27734.0,27730.0,0.37968]
[1680553619035,0.56766595,27734.0,27731.0,0.034004]
[1680553619265,0.56766595,27734.0,27731.0,0.034184]
[1680553619487,0.58766595,27734.0,27731.0,0.034184]
[1680553619769,0.58766595,27734.0,27733.0,0.3795]
[1680553620001,0.58766595,27734.0,27733.0,0.37968]
[1680553620002,0.56766595,27734.0,27733.0,0.37968]
[1680553620220,0.56766595,27734.0,27733.0,0.414381]
[1680553621112,0.58766595,27734.0,27733.0,0.414381]
[1680553621334,0.56766595,27734.0,27733.0,0.414381]
[1680553621525,0.58766595,27734.0,27733.0,0.416381]
[1680553621775,0.58766595,27734.0,27733.0,0.00218]
[1680553622013,0.61306795,27734.0,27733.0,0.00218]
[1680553622513,1.01306795,27734.0,27733.0,0.00218]
[1680553622730,1.31306795,27734.0,27733.0,0.002]
[1680553622958,0.61306795,27734.0,27733.0,0.002]
[1680553623853,0.59306795,27734.0,27730.0,0.00018]